fUSD/lending_fUSD_20240217
["ID","MTS","AMOUNT","RATE_DAILY","PERIOD"]
[314308767,1708169471837,-235.18876789,0.00056164,120]
[314308768,1708169471846,-500.0,0.00056164,120]
[314308769,1708169471856,-16672.61,0.00056164,120]
[314308770,1708169471865,-500.0,0.00056164,120]
[314308771,1708169471874,-500.0,0.00056164,14]
[314308772,1708169471884,-500.0,0.00056164,120]
[314308773,1708169471893,-4548.64,0.00056164,120]
[314308774,1708169471902,-568.12,0.00056164,120]
[314308775,1708169471912,-500.0,0.00056164,120]
[314308776,1708169471921,-500.0,0.00056164,120]
[314308777,1708169471930,-500.0,0.00056164,120]
[314308778,1708169471940,-500.0,0.00056164,120]
[314308779,1708169471950,-500.0,0.00056164,2]
[314308780,1708169471959,-500.0,0.00056164,120]
[314308781,1708169471968,-500.0,0.00056164,120]
[314308782,1708169471978,-500.0,0.00056164,120]
[314308783,1708169471987,-300.0,0.000562,120]
[314308784,1708169471996,-800.0,0.000562,30]
[314308785,1708169472005,-5000.0,0.000562,120]
[314308786,1708169472014,-160.0,0.00056219,120]
[314308787,1708169472023,-205.0,0.00056231,28]
[314308788,1708169472032,-223.021788,0.00056248,103]
[314308789,1708169472041,-150.0,0.0005625,40]
[314308790,1708169472051,-500.0,0.0005627,120]
[314308791,1708169472060,-153.52681665,0.00056281,68]
[314308792,1708169472070,-152.0,0.00056284,6]
[314308793,1708169472080,-223.021788,0.00056348,107]
[314308794,1708169472089,-182.72,0.00056359,120]
[314308795,1708169472098,-328.896,0.00056359,120]
[314308796,1708169472108,-304.533333,0.00056359,120]
[314308797,1708169472117,-182.72,0.00056359,120]
[314308798,1708169472126,-159.879999,0.00056359,120]
[314308799,1708169472135,-152.266666,0.00056359,120]
[314308800,1708169472144,-152.266667,0.00056359,120]
[314308801,1708169472153,-500.0,0.00056375,120]
[314308802,1708169472162,-25000.0,0.000564,120]
[314308803,1708169472171,-633.78,0.00056438,2]
[314308804,1708169472181,-500.0,0.00056438,120]
[314308805,1708169472191,-500.0,0.00056438,120]
[314308806,1708169472200,-500.0,0.00056438,120]
[314308807,1708169472210,-500.0,0.00056438,120]
[314308808,1708169472223,-500.0,0.00056438,120]
[314308809,1708169472232,-500.0,0.00056438,120]
[314308810,1708169472241,-536.12227791,0.00056438,120]
[314308811,1708169472251,-500.0,0.00056438,120]
[314308812,1708169472261,-500.0,0.00056438,120]
[314308813,1708169472270,-247.83571817,0.00056438,120]
[314308814,1708169472279,-500.0,0.00056438,120]
[314308815,1708169472288,-500.0,0.00056438,120]
[314308816,1708169472298,-293.83306253,0.00056438,120]
[314308817,1708169472307,-500.0,0.00056438,120]
[314308818,1708169472317,-500.0,0.00056438,2]
[314308819,1708169472325,-500.0,0.00056438,120]
[314308820,1708169472335,-500.0,0.00056438,2]
[314308821,1708169472344,-500.0,0.00056438,7]
[314308822,1708169472353,-500.0,0.00056438,120]
[314308823,1708169472363,-500.0,0.00056438,2]
[314308824,1708169472372,-415.42552223,0.00056438,120]
[314308825,1708169472382,-500.0,0.00056438,120]
[314308826,1708169472391,-500.0,0.00056438,120]
[314308827,1708169472400,-500.0,0.00056438,120]
[314308828,1708169472409,-500.0,0.00056438,120]
[314308829,1708169472418,-500.0,0.00056438,120]
[314308830,1708169472428,-500.0,0.00056438,120]
[314308831,1708169472438,-1000.0,0.00056438,120]
[314308832,1708169472447,-483.49063892,0.00056438,120]
[314308833,1708169472456,-500.0,0.00056438,120]
[314308834,1708169472465,-500.0,0.00056438,120]
[314308835,1708169472474,-264.0034848,0.00056438,120]
[314308836,1708169472482,-500.0,0.00056438,120]
[314308837,1708169472491,-274.2241288,0.00056438,120]
[314308838,1708169472500,-500.0,0.00056438,120]
[314308839,1708169472509,-150.0,0.00056438,120]
[314308840,1708169472519,-524.88,0.00056438,120]
[314308841,1708169472528,-744.32,0.00056438,120]
[314308842,1708169472537,-500.0,0.00056438,120]
[314308843,1708169472547,-500.0,0.00056438,2]
[314308844,1708169472556,-162.29154161,0.00056438,120]
[314308845,1708169472565,-500.0,0.00056438,120]
[314308846,1708169472574,-500.0,0.00056438,120]
[314308847,1708169472584,-500.0,0.00056438,120]
[314308848,1708169472593,-562.76188863,0.00056438,120]
[314308849,1708169472602,-500.0,0.00056438,120]
[314308850,1708169472610,-500.0,0.00056438,120]
[314308851,1708169472619,-650.0,0.00056438,120]
[314308852,1708169472629,-500.0,0.00056438,7]
[314308853,1708169472638,-500.0,0.00056438,120]
[314308854,1708169472648,-500.0,0.00056438,120]
[314308855,1708169472657,-500.0,0.00056438,120]
[314308856,1708169472667,-500.0,0.00056438,120]
[314308857,1708169472677,-323.4775181,0.00056438,120]
[314308858,1708169472686,-500.0,0.00056438,120]
[314308859,1708169472695,-471.99956181,0.00056438,120]
[314308860,1708169472705,-500.0,0.00056438,120]
[314308861,1708169472714,-500.0,0.00056438,120]
[314308862,1708169472724,-500.0,0.00056438,120]
[314308863,1708169472733,-500.0,0.00056438,120]
[314308864,1708169472742,-500.0,0.00056438,120]
[314308865,1708169472751,-500.0,0.00056438,120]
[314308866,1708169472761,-921.44,0.00056438,120]
[314308867,1708169472770,-500.0,0.00056438,120]
[314308868,1708169472779,-2114.31,0.00056438,120]
[314308869,1708169472788,-500.0,0.00056438,120]
[314308870,1708169472798,-472.46893338,0.00056438,120]
[314308871,1708169472807,-500.0,0.00056438,120]
[314308872,1708169472816,-500.0,0.00056438,120]
[314308873,1708169472825,-500.0,0.00056438,120]
[314308874,1708169472834,-500.0,0.00056438,120]
[314308875,1708169472843,-500.0,0.00056438,120]
[314308876,1708169472853,-500.0,0.00056438,120]
[314308877,1708169472862,-500.0,0.00056438,120]
[314308878,1708169472871,-1613.29,0.00056438,120]
[314308879,1708169472880,-350.79666112,0.00056438,120]
[314308880,1708169472889,-560.76,0.00056438,120]
[314308881,1708169472899,-500.0,0.00056438,120]
[314308882,1708169472908,-500.0,0.00056438,120]
[314308883,1708169472917,-500.0,0.00056438,120]
[314308884,1708169472926,-500.0,0.00056438,120]
[314308885,1708169472936,-500.0,0.00056438,120]
[314308886,1708169472946,-500.0,0.00056438,120]
[314308887,1708169472955,-500.0,0.00056438,120]
[314308888,1708169472964,-500.0,0.00056438,120]
[314308889,1708169472973,-500.0,0.00056438,120]
[314308890,1708169472982,-500.0,0.00056438,120]
[314308891,1708169472991,-1241.82,0.00056438,120]
[314308892,1708169473000,-233.59221271,0.00056438,120]
[314308893,1708169473010,-500.0,0.00056438,120]
[314308894,1708169473019,-500.0,0.00056438,120]
[314308895,1708169473028,-547.12,0.00056438,120]
[314308896,1708169473037,-4022.57,0.00056438,120]
[314308897,1708169473046,-500.0,0.00056438,2]
[314308898,1708169473055,-500.0,0.00056438,120]
[314308899,1708169473065,-500.0,0.00056438,120]
[314308900,1708169473074,-500.0,0.00056438,120]
[314308901,1708169473083,-500.0,0.00056438,120]
[314308902,1708169473093,-609.54,0.00056438,120]
[314308903,1708169473102,-500.0,0.00056438,120]
[314308904,1708169473112,-500.0,0.00056438,120]
[314308905,1708169473121,-500.0,0.00056438,120]
[314308906,1708169473131,-271.01725154,0.00056438,120]
[314308907,1708169473141,-500.0,0.00056438,120]
[314308908,1708169473150,-500.0,0.00056438,120]
[314308909,1708169473159,-500.0,0.00056438,120]
[314308910,1708169473169,-500.0,0.00056438,120]
[314308911,1708169473178,-865.57,0.00056438,120]
[314308912,1708169473188,-500.0,0.00056438,120]
[314308913,1708169473197,-739.98,0.00056438,120]
[314308914,1708169473208,-500.0,0.00056438,120]
[314308915,1708169473219,-500.0,0.00056438,120]
[314308916,1708169473228,-500.0,0.00056438,120]
[314308917,1708169473237,-500.0,0.00056438,120]
[314308918,1708169473246,-500.0,0.00056438,120]
[314308919,1708169473256,-500.0,0.00056438,120]
[314308920,1708169473265,-500.0,0.00056438,120]
[314308921,1708169473274,-500.0,0.00056438,120]
[314308922,1708169473284,-500.0,0.00056438,120]
[314308923,1708169473294,-704.79,0.00056438,120]
[314308924,1708169473303,-6527.46,0.00056438,120]
[314308925,1708169473313,-743.57,0.00056438,120]
[314308926,1708169473322,-758.94,0.00056438,120]
[314308927,1708169473332,-500.0,0.00056438,120]
[314308928,1708169473341,-500.0,0.00056438,120]
[314308929,1708169473351,-1468.8,0.00056438,120]
[314308930,1708169473360,-380.58745641,0.00056438,120]
[314308931,1708169473369,-500.0,0.00056438,120]
[314308932,1708169473378,-500.0,0.00056438,120]
[314308933,1708169473388,-203.90726346,0.00056438,120]
[314308934,1708169473397,-3438.58,0.00056438,120]
[314308935,1708169473406,-500.0,0.00056438,120]
[314308936,1708169473415,-500.0,0.00056438,120]
[314308937,1708169473424,-500.0,0.00056438,120]
[314308938,1708169473436,-1279.83,0.00056438,120]
[314308939,1708169473446,-582.72,0.00056438,120]
[314308940,1708169473455,-500.0,0.00056438,120]
[314308941,1708169473465,-500.0,0.00056438,120]
[314308942,1708169473474,-500.0,0.00056438,120]
[314308943,1708169473483,-500.0,0.00056438,120]
[314308944,1708169473493,-164.92732461,0.00056438,120]
[314308945,1708169473502,-500.0,0.00056438,120]
[314308946,1708169473512,-500.0,0.00056438,120]
[314308947,1708169473521,-500.0,0.00056438,120]
[314308948,1708169473531,-500.0,0.00056438,120]
[314308949,1708169473540,-500.0,0.00056438,120]
[314308950,1708169473549,-500.0,0.00056438,120]
[314308951,1708169473558,-500.0,0.00056438,120]
[314308952,1708169473568,-500.0,0.00056438,120]
[314308953,1708169473577,-500.0,0.00056438,120]
[314308954,1708169473586,-769.19,0.00056438,120]
[314308955,1708169473595,-500.0,0.00056438,120]
[314308956,1708169473604,-4337.99,0.00056438,120]
[314308957,1708169473613,-500.0,0.00056438,120]
[314308958,1708169473622,-617.31430225,0.00056438,120]
[314308959,1708169473642,-16055.29569775,0.00056438,120]
[314308960,1708169473651,-500.0,0.00056438,120]
[314308961,1708169473748,-500.0,0.00056438,14]
[314308962,1708169473757,-500.0,0.00056438,120]
[314308963,1708169473767,-4548.64,0.00056438,120]
[314308964,1708169473776,-568.12,0.00056438,120]
[314308965,1708169473786,-500.0,0.00056438,120]
[314308966,1708169473795,-500.0,0.00056438,120]
[314308967,1708169473804,-500.0,0.00056438,120]
[314308968,1708169473813,-409.81365968,0.00056438,120]
[314308969,1708169473822,-500.0,0.00056438,2]
[314308970,1708169473831,-537.63975091,0.00056438,120]
[314308971,1708169473841,-500.0,0.00056438,120]
[314308972,1708169473850,-210.22987506,0.00056438,2]
[314308973,1708169473859,-223.021788,0.00056448,108]
[314308974,1708169473869,-500.0,0.00056481,120]
[314308975,1708169473878,-1328.9961433,0.000565,15]
[314308976,1708169473887,-500.0,0.000565,40]
[314308977,1708169473897,-500.0,0.000565,40]
[314308978,1708169473906,-500.0,0.000565,40]
[314308979,1708169473915,-503.56804806,0.000565,40]
[314308980,1708169473924,-207.59,0.000565,30]
[314308981,1708169473934,-1741.688955,0.000565,35]
[314308982,1708169473942,-150.0,0.000565,43]
[314308983,1708169473951,-150.0,0.000565,43]
[314308984,1708169473961,-152.84887592,0.0005652,82]
[314308985,1708169473970,-2432.95365588,0.00056537,2]
[314308986,1708169473980,-3397.0,0.00056539,120]
[314308987,1708169473990,-500.0,0.00056586,120]
[314308988,1708169473999,-1387.59767676,0.000566,120]
[314308989,1708169474009,-60.04958438,0.000566,36]
[314308990,1708169474025,-418.576,0.00056083,120]
[314308991,1708169474037,-812.424,0.00056083,120]
[314308992,1708169474047,-221.29285662,0.000566,36]
[314308993,1708169474057,-200.0,0.000566,36]
[314308994,1708169474066,-228.27,0.000566,36]
[314308995,1708169474076,-35.12078203,0.000566,34]
[314308996,1708169474088,-264.87921797,0.000566,34]
[314308997,1708169474097,-1312.8105374,0.000566,34]
[314308998,1708169474106,-800.0,0.00056638,120]
[314308999,1708169474116,-630.76598265,0.00056651,2]
[314309000,1708169474128,-1548.82020175,0.00056651,2]
[314309001,1708169474137,-951.2168502,0.0005669,120]
[314309002,1708169474275,-1448.35358817,0.0004,30]
[314309003,1708169474285,-599.0,0.00049874,2]
[314309004,1708169474294,-405.51,0.00051781,30]
[314309005,1708169474304,-347.0,0.000534,30]
[314309006,1708169474314,-2900.13641293,0.0005669,120]
[314309007,1708169474326,-1536.52494559,0.0005669,120]
[314309008,1708169474439,-350.154,0.00049874,2]
[314309009,1708169474450,-20443.67756945,0.0005669,120]
[314309010,1708169474574,-360740.89567781,0.0005669,120]
[314309011,1708169476078,1968.02440121,0.0002354,2]
[314309012,1708169476098,150.0,0.0002354,2]
[314309013,1708169493621,-913.95119758,0.0002354,2]
[314309015,1708169939663,-3031.97559879,0.0002354,2]
[314309016,1708169947481,191.91293503,0.0002985,2]
[314309017,1708170065098,3031.97559879,0.0002354,2]
[314309018,1708170365113,3031.97559879,0.0002354,2]
[314309019,1708170396998,550.0,0.00025,3]
[314309020,1708170398114,600.0,0.00027,3]
[314309021,1708170399225,650.0,0.00029,3]
[314309022,1708170585014,-313.71588266,0.00030998,2]
[314309023,1708170585035,-2892.20342618,0.00030999,4]
[314309024,1708170585057,-700.0,0.00031,3]
[314309025,1708170585077,-235.46768901,0.00032898,2]
[314309026,1708170585097,-204.23833728,0.00032998,4]
[314309027,1708170585117,-772.24785103,0.00032999,4]
[314309028,1708170585138,-44882.12681384,0.00033,2]
[314309029,1708170592977,-15231.94061453,0.00033,2]
[314309030,1708170592998,-750.0,0.00033,3]
[314309031,1708170593017,-326.67135817,0.00033,60]
[314309032,1708170593038,-156.52167481,0.000349,2]
[314309033,1708170593062,-499.99,0.000349,2]
[314309034,1708170593083,-738.41209399,0.00035,4]
[314309035,1708170593104,-310.6357,0.00036089,2]
[314309036,1708170593124,-157.12896807,0.00037,4]
[314309037,1708170593144,-150.0,0.00037596,2]
[314309038,1708170593164,-300.0,0.00037596,7]
[314309039,1708170593184,-450.0,0.00037596,12]
[314309040,1708170593205,-316.64550976,0.00037596,17]
[314309041,1708170593225,-6188.0,0.000388,2]
[314309042,1708170593245,-181.77,0.000399,2]
[314309043,1708170593265,-1212.91218193,0.0004,4]
[314309044,1708170610962,1217.80696784,0.0004,4]
[314309048,1708170631579,-230.0,0.00040968,120]
[314309049,1708170631589,-153.48458053,0.00040968,120]
[314309050,1708170631599,-3959.99174973,0.00040968,4]
[314309051,1708170631610,-3614.94127971,0.00040968,4]
[314309052,1708170631687,-1034.11119948,0.00040968,4]
[314309055,1708170637597,-8021.28928545,0.00040968,4]
[314309056,1708170637608,-20034.562,0.00041101,2]
[314309057,1708170637618,-1176.3664217,0.00041201,4]
[314309058,1708170637629,-581.56,0.00041671,2]
[314309059,1708170637640,-1672.85364358,0.000417,4]
[314309060,1708170637649,-35675.5884,0.00041769,2]
[314309061,1708170637658,-153.96,0.000418,4]
[314309062,1708170637668,-153.96,0.000418,4]
[314309063,1708170637680,-153.96,0.000418,4]
[314309064,1708170637690,-153.96,0.000418,4]
[314309065,1708170637699,-153.96,0.000418,4]
[314309066,1708170637709,-153.96,0.000418,4]
[314309067,1708170637718,-1525.82688686,0.00041869,11]
[314309068,1708170637728,-13740.63067822,0.00041869,13]
[314309069,1708170637738,-10625.8474808,0.00041869,13]
[314309070,1708170637747,-1050.25040294,0.00042,60]
[314309071,1708170637757,-152.0,0.00042317,3]
[314309072,1708170637766,-250.0,0.00042483,2]
[314309073,1708170637776,-2000.0,0.00042727,120]
[314309074,1708170637785,-1000.0,0.00042748,2]
[314309075,1708170637795,-167.88,0.0004277,2]
[314309076,1708170637805,-23880.0,0.00042786,2]
[314309077,1708170637815,-1698.5,0.00043014,2]
[314309078,1708170637825,-166.37,0.00043014,2]
[314309079,1708170637834,-250.0,0.00043241,111]
[314309080,1708170637844,-151.98,0.00043645,2]
[314309081,1708170637853,-283.92,0.00043759,15]
[314309082,1708170637862,-159.21,0.00043768,2]
[314309083,1708170637871,-250.0,0.00043778,2]
[314309084,1708170637881,-157.54,0.00043802,2]
[314309085,1708170637890,-150.0,0.00043878,2]
[314309086,1708170637899,-581.56,0.00043935,2]
[314309087,1708170637908,-1672.85364349,0.00044278,6]
[314309088,1708170637918,-13095.1479,0.00044898,7]
[314309089,1708170637927,-233.74226119,0.000449,2]
[314309090,1708170637936,-8175.54889892,0.000449,6]
[314309091,1708170637948,-4833.78305591,0.00045,17]
[314309092,1708170637958,-404.92800675,0.00045,4]
[314309093,1708170637968,-2705.0,0.0004511,120]
[314309094,1708170637977,-153.96,0.000452,5]
[314309095,1708170637986,-153.96,0.000452,5]
[314309096,1708170637996,-153.96,0.000452,5]
[314309097,1708170638005,-153.96,0.000452,5]
[314309098,1708170638015,-153.96,0.000452,5]
[314309099,1708170638024,-153.96,0.000452,5]
[314309100,1708170638033,-157.54,0.00046085,2]
[314309101,1708170638043,-581.56,0.00046199,2]
[314309102,1708170638053,-166.12,0.00046309,2]
[314309103,1708170638062,-1784.65,0.00046309,120]
[314309104,1708170638071,-233.74226118,0.000464,2]
[314309105,1708170638080,-180.0,0.00046838,2]
[314309106,1708170638090,-1672.85364349,0.00046856,8]
[314309107,1708170638100,-152.0,0.00046972,4]
[314309108,1708170638110,-8175.54889886,0.00047111,8]
[314309109,1708170638119,-156.42,0.00047173,2]
[314309110,1708170638128,-283.92,0.00047495,120]
[314309111,1708170638137,-8606.39563081,0.00047796,2]
[314309112,1708170638146,-233.74226118,0.000479,2]
[314309113,1708170638155,-1000.0,0.00048092,2]
[314309114,1708170638164,-581.56,0.00048463,2]
[314309115,1708170638173,-153.96,0.000486,6]
[314309116,1708170638183,-153.96,0.000486,6]
[314309117,1708170638192,-153.96,0.000486,6]
[314309118,1708170638201,-153.96,0.000486,6]
[314309119,1708170638211,-153.96,0.000486,6]
[314309120,1708170638223,-153.96,0.000486,6]
[314309121,1708170638233,-1600.0,0.00049,20]
[314309122,1708170638242,-1594.0,0.000492,20]
[314309123,1708170638251,-8175.54889886,0.00049322,10]
[314309124,1708170638260,-233.74226118,0.000494,2]
[314309125,1708170638269,-1672.85364349,0.00049433,10]
[314309126,1708170638278,-1000.0,0.000495,2]
[314309127,1708170638288,-2500.0,0.00049591,2]
[314309128,1708170638297,-10000.0,0.00049691,3]
[314309129,1708170638307,-151.0,0.00049795,120]
[314309130,1708170638316,-1000.0,0.000499,2]
[314309131,1708170638325,-5401.15986194,0.0004999,13]
[314309132,1708170638335,-16203.4795858,0.0004999,13]
[314309133,1708170638344,-100000.0,0.0005,40]
[314309134,1708170638353,-30941.0,0.0005,14]
[314309135,1708170638362,-205.0,0.0005,10]
[314309136,1708170638371,-500.0,0.0005,20]
[314309137,1708170638380,-4000.0,0.0005,2]
[314309138,1708170638390,-581.56,0.00050726,2]
[314309139,1708170638399,-265.37205506,0.0005089,23]
[314309140,1708170638408,-233.74226118,0.000509,30]
[314309141,1708170638418,-5615.0,0.00050955,30]
[314309142,1708170638427,-16203.4795858,0.0005098,13]
[314309143,1708170638437,-48610.4387575,0.0005099,13]
[314309144,1708170638447,-1331.12768345,0.00050999,2]
[314309145,1708170638457,-100000.0,0.00051,41]
[314309146,1708170638466,-377.14569728,0.00051,51]
[314309147,1708170638476,-205.0,0.00051,20]
[314309148,1708170638485,-502.0110177,0.00051,20]
[314309149,1708170638495,-5401.15986194,0.00051214,13]
[314309150,1708170638505,-5401.15986194,0.00051222,13]
[314309151,1708170638514,-5800.0,0.00051224,7]
[314309152,1708170638523,-283.92,0.00051231,120]
[314309153,1708170638532,-5800.0,0.00051232,7]
[314309154,1708170638541,-1283.03701857,0.000514,14]
[314309155,1708170638551,-945.0534,0.00051499,2]
[314309156,1708170638561,-3000.0,0.000515,45]
[314309157,1708170638570,-5000.0,0.000515,60]
[314309158,1708170638580,-5401.15986194,0.00051527,13]
[314309159,1708170638590,-8175.54889886,0.00051533,12]
[314309160,1708170638600,-1074.53,0.00051537,30]
[314309161,1708170638609,-953.0,0.00051549,120]
[314309162,1708170638619,-216.0,0.00051549,120]
[314309163,1708170638630,-1949.0,0.00051549,120]
[314309164,1708170638640,-152.177,0.00051549,120]
[314309165,1708170638650,-1276.876,0.00051549,120]
[314309166,1708170638659,-229.572,0.00051549,120]
[314309167,1708170638669,-180.0,0.00051549,2]
[314309168,1708170638679,-151.302,0.00051549,120]
[314309169,1708170638688,-150.0,0.00051549,120]
[314309170,1708170638697,-164.113,0.00051549,120]
[314309171,1708170638707,-150.0,0.00051549,120]
[314309172,1708170638716,-206.228,0.00051549,120]
[314309173,1708170638725,-181.935,0.00051549,120]
[314309174,1708170638734,-150.0,0.00051549,120]
[314309175,1708170638743,-211.956,0.00051549,120]
[314309176,1708170638753,-5401.15986194,0.00051627,13]
[314309177,1708170638762,-152.0,0.00051628,5]
[314309178,1708170638771,-1283.03701841,0.00051637,14]
[314309179,1708170638781,-170.84824694,0.00051854,2]
[314309180,1708170638790,-82465.5372299,0.00051864,12]
[314309181,1708170638799,-1283.03701841,0.00051874,14]
[314309182,1708170638808,-5401.15986194,0.0005189,13]
[314309183,1708170638817,-153.96,0.000519,7]
[314309184,1708170638827,-153.96,0.000519,7]
[314309185,1708170638836,-153.96,0.000519,7]
[314309186,1708170638845,-153.96,0.000519,7]
[314309187,1708170638854,-153.96,0.000519,7]
[314309188,1708170638864,-153.96,0.000519,7]
[314309189,1708170638873,-21604.6394478,0.0005198,13]
[314309190,1708170638883,-54011.5986194,0.0005199,13]
[314309191,1708170638892,-82465.5372299,0.0005199,12]
[314309192,1708170638901,-16203.4795858,0.0005199,13]
[314309193,1708170638911,-65781.17226863,0.00052,42]
[314309194,1708170639095,-34218.82773137,0.00052,42]
[314309195,1708170639105,-29355.74222131,0.00052,120]
[314309196,1708170639114,-10036.0,0.00052,120]
[314309197,1708170639123,-300.0,0.00052,52]
[314309198,1708170639134,-160.0,0.00052,120]
[314309199,1708170639143,-160.0,0.00052,120]
[314309200,1708170639152,-205.0,0.00052,20]
[314309201,1708170639164,-1000.0,0.00052,120]
[314309202,1708170639174,-865.68833903,0.00052,14]
[314309203,1708170639183,-1672.85364349,0.00052011,13]
[314309204,1708170639192,-27005.7993097,0.00052025,13]
[314309205,1708170639202,-82465.5372299,0.00052025,12]
[314309206,1708170639211,-20000.0,0.00052055,120]
[314309207,1708170639221,-2000.0,0.000521,2]
[314309208,1708170639230,-1283.03701841,0.00052111,14]
[314309209,1708170639241,-3007.12404225,0.00052328,39]
[314309210,1708170639251,-1283.03701841,0.00052347,14]
[314309211,1708170639260,-158.23203844,0.00052429,60]
[314309212,1708170639270,-1080.41,0.0005245,2]
[314309213,1708170639279,-181.37575292,0.00052544,2]
[314309214,1708170639288,-6026.10687721,0.00052544,7]
[314309215,1708170639297,-1000.0,0.00052562,45]
[314309216,1708170639306,-511.9838566,0.00052562,4]
[314309217,1708170639315,-1283.03701841,0.00052584,14]
[314309218,1708170639325,-415.67526503,0.00052599,4]
[314309219,1708170639334,-396.16993913,0.00052634,4]
[314309220,1708170639343,-197.49382088,0.00052651,2]
[314309221,1708170639353,-1682.35007225,0.00052667,3]
[314309222,1708170639363,-160.0,0.00052685,120]
[314309223,1708170639372,-418.13561499,0.000527,2]
[314309224,1708170639382,-221.51,0.00052742,2]
[314309225,1708170639391,-1283.03701841,0.00052821,14]
[314309226,1708170639401,-1817.93660883,0.00052825,4]
[314309227,1708170639410,-153.22000858,0.000529,55]
[314309228,1708170639419,-28457.37796358,0.000529,120]
[314309229,1708170639443,-2618.52048429,0.000529,120]
[314309230,1708170639455,-403.93718871,0.000529,120]
[314309231,1708170639466,-5995.31032294,0.000529,120]
[314309232,1708170639478,-518.6295812,0.000529,120]
[314309241,1708170640313,-150.0,0.00051549,120]
[314309242,1708170640322,-5020.2,0.000529,120]
[314309243,1708170640408,-117.51138932,0.000529,120]
[314309244,1708170641121,-517.43526,0.000529,120]
[314309260,1708170642665,-82125.08353834,0.000529,120]
[314309261,1708170642777,-478303.77922968,0.000529,120]
[314309262,1708170642787,-160.0,0.00052904,120]
[314309263,1708170642796,-3624.0,0.00052957,117]
[314309264,1708170642805,-82465.5372299,0.00052979,12]
[314309265,1708170642814,-82465.5372299,0.00052979,12]
[314309266,1708170642825,-1141.74525294,0.00052988,7]
[314309267,1708170642834,-3463.83984799,0.00052989,2]
[314309268,1708170642846,-57889.63046562,0.00052989,2]
[314309269,1708170643145,-1.33365962,0.00052989,2]
[314309270,1708170643156,-12437.20002545,0.00052989,2]
[314309271,1708170643168,-2717.91612607,0.00052989,2]
[314309272,1708170643180,-3149.85346419,0.00052989,2]
[314309273,1708170643196,-2418.22225108,0.00052989,2]
[314309300,1708170646066,-48533.60415998,0.00052989,2]
[314309301,1708170646075,-159636.4,0.00052989,2]
[314309302,1708170646084,-71350.48084994,0.0005299,12]
[314309303,1708170649360,154.5,0.000399,2]
[314309304,1708170665154,3031.97559879,0.0002354,2]
[314309305,1708170669683,485880.18466981,0.00023,2]
[314309306,1708170669704,20000.0,0.00023,2]
[314309307,1708170669724,100000.0,0.00023,2]
[314309308,1708170685035,-100000.0,0.00023,2]
[314309309,1708170689395,-25000.0,0.00023,2]
[314309310,1708170692119,-25000.0,0.00023,2]
[314309311,1708170696005,-25000.0,0.00023,2]
[314309312,1708170696865,-50000.0,0.00023,2]
[314309313,1708170706648,-25000.0,0.00023,2]
[314309314,1708170712222,1692.31672704,0.00021,4]
[314309315,1708170728454,-2000.0,0.00023,2]
[314309319,1708170855593,311.95466827,0.0002,2]
[314309321,1708170861781,427.19399042,0.000137,2]
[314309322,1708170892836,5615.0,0.00022317,2]
[314309323,1708170962211,159.72869695,0.000228,2]
[314309324,1708170993889,-1000.0,0.000229,2]
[314309325,1708170993911,-155.8054,0.000229,2]